Cogmind - Beta 9.4 @@@ ROGUE MODE // 2020.01.30 @ 23:54:53 Player: Destravous Result: Destroyed by S-10 Pest with Light Assault Rifle Performance ------------- Evolutions (1) 500 Regions Visited (3) 600 Robots Destroyed (8) 40 Value Destroyed (77) 77 Prototype IDs (0) 0 Alien Tech Used (0) 0 Bonus (35) 35 TOTAL SCORE: 1252 Bonus ------- Follower Combat Kills 35 Cogmind --------- Core Integrity 0/400 Matter 282/300 Energy 93/100 System Corruption 0% Temperature Cool (0) Movement Core (50) Location -9/Materials Parts ------- > --- POWER (1) -------- (None) > --- PROPULSION (3) --- (None) > --- UTILITY (3) ------ (None) > --- WEAPON (2) ------- (None) > --- INVENTORY (4) ---- Light Ion Engine Light Treads Light Treads Assault Rifle Peak State ------------ > --- POWER ------------ Light Ion Engine > --- PROPULSION ------- Flight Unit Flight Unit Flight Unit > --- UTILITY ---------- Small Storage Unit Sensor Array > --- WEAPON ----------- EM Pulse Gun Assault Rifle > --- INVENTORY -------- Light Ion Engine Light Treads Light Treads [Rating: 8] Favorites ----------- Power Light Ion Engine Engine Light Ion Engine Propulsion Flight Unit Leg Aluminum Leg Flight Unit Flight Unit Utility Small Storage Unit Device Sensor Array Storage Small Storage Unit Weapon EM Pulse Gun Energy Gun EM Pulse Gun Ballistic Gun Assault Rifle Build | -11 -10 -10 -9 ------- Run | Scr Mat Min Mat Slots Evolved 2 | . . . 2 Power . | . . . . Propulsion 1 | . . . 1 Utility 1 | . . . 1 Weapon . | . . . . Parts Attached 8 | . 4 . 4 Power . | . . . . Engine . | . . . . Core . | . . . . Reactor . | . . . . Propulsion 3 | . 2 . 1 Treads . | . . . . Leg . | . . . . Wheel . | . . . . Hover . | . . . . Flight 3 | . 2 . 1 Utility 1 | . . . 1 Device 1 | . . . 1 Storage . | . . . . Processor . | . . . . Hackware . | . . . . Protection . | . . . . Artifact . | . . . . Weapon 4 | . 2 . 2 Energy Gun 3 | . 2 . 1 Energy Cannon . | . . . . Ballistic Gun 1 | . . . 1 Ballistic Cannon . | . . . . Launcher . | . . . . Special Weapon . | . . . . Impact Weapon . | . . . . Slashing Weapon . | . . . . Piercing Weapon . | . . . . Special Melee Weapon . | . . . . Unidentified Prototypes . | . . . . Parts Lost 5 | . . . 5 Power 1 | . . . 1 Propulsion 3 | . . . 3 Utility 1 | . . . 1 Weapon . | . . . . Highest Loss Streak 5 | . . . 5 Average Slot Usage (%) 72 | . 79 57 57 Engine 13 | . 14 14 8 Leg 14 | . 19 . . Flight 12 | . 8 28 19 Device 1 | . . . 11 Storage 13 | . 14 14 8 Energy Gun 9 | . 11 . 5 Ballistic Gun 8 | . 10 . 5 Naked Turns 4 | . . . 4 Heaviest Build 12 | 11 11 7 12 Greatest Support 20 | 20 20 8 12 Greatest Overweight (x) 2 | . 1 . 2 Average Overweight (x) . | . . . . Largest Inventory Capacity 6 | 6 6 6 6 Average Capacity 5 | 6 6 6 5 Most Carried 6 | 6 6 6 5 Average Carried 5 | 6 5 6 3 Final Capacity 6 | 6 6 6 4 Final Carried 6 | 6 6 6 4 Class Distribution -------------------- 100% | Mutant Dominant Class ---------------- Mutant | -10/Materials Mutant | -10/Mines Mutant | -9/Materials Resources | -11 -10 -10 -9 ----------- Run | Scr Mat Min Mat Matter Collected 278 | 200 78 . . Remotely . | . . . . Salvage Created 162 | . 162 . . Parts 11 | . 11 . . Haulers Intercepted . | . . . . Recyclers Shooed . | . . . . Parts Field Recycled . | . . . . Retrieved Matter . | . . . . Parts Self-Destructed . | . . . . Prevented . | . . . . Kills | -11 -10 -10 -9 ------- Run | Scr Mat Min Mat Combat Hostiles Destroyed 6 | . 6 . . Guns 6 | . 6 . . Classes Destroyed 3 | . 3 . . Worker 1 | . 1 . . Watcher 1 | . 1 . . Swarmer 6 | . 6 . . Best Kill Streak 6 | . 6 . . Combat Bots Only 3 | . 3 . . Max Kills in Single Turn 1 | . 1 . . Gunslinging . | . . . . Exploded . | . . . . Melee . | . . . . Uniques/NPCs Destroyed . | . . . . Combat | -11 -10 -10 -9 -------- Run | Scr Mat Min Mat Damage Taken 781 | . 222 13 546 Core 479 | . 65 13 401 Absorbed by Shields . | . . . . Core Remaining (%) 84 | 100 . 68 . Volleys Fired 20 | . 20 . . Largest 2 | . 2 . . Hottest 60 | . 60 . . Shots Fired 36 | . 36 . . Gun 36 | . 36 . . Cannon . | . . . . Launcher . | . . . . Special . | . . . . Kinetic 16 | . 16 . . Thermal . | . . . . Explosive . | . . . . Electromagnetic 20 | . 20 . . Robot Hit Streak 2 | . 2 . . Robot Miss Streak 5 | . 5 . . Penetration Max . | . . . . Secondary Targets . | . . . . Shots Hit Robots 12 | . 12 . . Core Hits 9 | . 8 . 1 Critical Hits . | . . . . Critical Kills . | . . . . Critical Parts Destroyed . | . . . . Melee Attacks . | . . . . Impact . | . . . . Slashing . | . . . . Piercing . | . . . . Sneak Attacks . | . . . . Combat Hostiles . | . . . . Follow-up Attacks . | . . . . Damage Inflicted 167 | . 160 . 7 Guns 160 | . 160 . . Cannons . | . . . . Explosions . | . . . . Melee . | . . . . Ramming 7 | . . . 7 Kinetic 27 | . 27 . . Thermal . | . . . . Explosive . | . . . . Electromagnetic 133 | . 133 . . Impact . | . . . . Slashing . | . . . . Piercing . | . . . . Highest Corruption . | . . . . Average Corruption . | . . . . Corruption Purged . | . . . . Overload Shots . | . . . . Overflow Damage . | . . . . Projectiles . | . . . . Explosions . | . . . . Melee . | . . . . Knockbacks . | . . . . Impact . | . . . . Kinetic . | . . . . Secondary . | . . . . Self-Inflicted Damage 3 | . . . 3 Shots . | . . . . Rammed 2 | . . . 2 Targets Rammed 2 | . . . 2 Kicked . | . . . . Crushed . | . . . . Highest Temperature 9 | . 9 . . Average Temperature 4 | . 4 . . Received Heat Transfer 81 | . . 9 72 Siege Activations . | . . . . Robots Corrupted . | . . . . Combat Hostiles . | . . . . Parts Fried 1 | . 1 . . Impact Corruptions . | . . . . Robots Melted . | . . . . Combat Hostiles . | . . . . Parts Melted . | . . . . Heat Transferred . | . . . . Parts Sabotaged . | . . . . Parts Stolen . | . . . . Parts Stripped . | . . . . Power Chain Reactions . | . . . . Missiles Intercepted . | . . . . Alert | -11 -10 -10 -9 ------- Run | Scr Mat Min Mat Peak Influence 173 | . 173 121 76 Average Influence 86 | . 96 96 48 Maximum Alert Level . | . . . . Low Security (%) 100 | 100 100 100 100 Level 1 . | . . . . Level 2 . | . . . . Level 3 . | . . . . Level 4 . | . . . . Level 5 . | . . . . High Security . | . . . . Max Security . | . . . . Squads Dispatched 3 | . . . 3 Investigation 1 | . . . 1 Extermination . | . . . . Reinforcement 2 | . . . 2 Assault . | . . . . Garrison . | . . . . Intercept . | . . . . Construction Impeded . | . . . . Haulers Reinforced . | . . . . Stealth | -11 -10 -10 -9 --------- Run | Scr Mat Min Mat Distress Signals . | . . . . Communications Jammed . | . . . . Distress Signals . | . . . . Times Spotted 23 | . 7 4 12 Peak Tracking Total 10 | . 3 2 10 Tactical Retreats . | . . . . Traps | -11 -10 -10 -9 ------- Run | Scr Mat Min Mat Traps Triggered . | . . . . Indirectly . | . . . . Trap Hack Attempts . | . . . . Triggered . | . . . . Disarmed . | . . . . Reprogrammed . | . . . . Reused . | . . . . Traps Extracted . | . . . . Installed . | . . . . Triggered . | . . . . Machines | -11 -10 -10 -9 ---------- Run | Scr Mat Min Mat Machines Disabled . | . . . . Max in Single Turn . | . . . . Machines Sabotaged . | . . . . Garrisons Compromised . | . . . . Overloaded Fab Kills . | . . . . Fab Network Shutdowns . | . . . . Hacking | -11 -10 -10 -9 --------- Run | Scr Mat Min Mat Machines Accessed 3 | . 2 . 1 Terminals 2 | . 1 . 1 Fabricators . | . . . . Repair Stations . | . . . . Recycling Units 1 | . 1 . . Scanalyzers . | . . . . Garrison Access . | . . . . Total Hacks 6 | . 3 . 3 Successful 3 | . 3 . . Failed 3 | . . . 3 Catastrophic . | . . . . Database Lockouts . | . . . . Manual 1 | . 1 . . Terminals 4 | . 1 . 3 Fabricators . | . . . . Repair Stations . | . . . . Recycling Units 2 | . 2 . . Scanalyzers . | . . . . Garrison Access . | . . . . Terminal Hacks 1 | . 1 . . Zone Layout 1 | . 1 . . Fabricator Hacks . | . . . . Repair Station Hacks . | . . . . Recycling Unit Hacks 2 | . 2 . . Report Inventory 1 | . 1 . . Retrieve Matter 1 | . 1 . . Scanalyzer . | . . . . Garrison Access Hacks . | . . . . Unauthorized Hacks . | . . . . Terminals . | . . . . Fabricators . | . . . . Repair Stations . | . . . . Recycling Units . | . . . . Scanalyzers . | . . . . Garrison Access . | . . . . Data Cores Recovered . | . . . . Used . | . . . . Hacking Detections 1 | . . . 1 Full Trace Events 1 | . . . 1 Feedback Events . | . . . . Feedback Blocked . | . . . . Robot Schematics Acquired . | . . . . Robots Built . | . . . . Matter . | . . . . Time . | . . . . Total Robot Build Rating . | . . . . Part Schematics Acquired . | . . . . Parts Built . | . . . . Matter . | . . . . Time . | . . . . Total Part Build Rating . | . . . . Parts Repaired . | . . . . Time . | . . . . Parts Recycled . | . . . . Recycled Matter . | . . . . Retrieved Matter . | . . . . Retrieved Components . | . . . . Parts Scanalyzed . | . . . . Part Schematics Acquired . | . . . . Parts Damaged . | . . . . Bothacking | -11 -10 -10 -9 ------------ Run | Scr Mat Min Mat Used RIF Installer . | . . . . Robots Hacked . | . . . . Non-combat . | . . . . Combat . | . . . . Robot Hacks Applied . | . . . . Relay Couplers Released . | . . . . Robots Rewired . | . . . . Allies Hacked . | . . . . Hacks Repelled . | . . . . Allies | -11 -10 -10 -9 -------- Run | Scr Mat Min Mat Total Allies 2 | . . 2 . Largest Group 2 | . . 2 . Highest-Rated Group 46 | . . 46 . Highest-Rated Ally 31 | . . 31 . Total Orders . | . . . . Ally Attacks 5 | . . 5 . Total Damage 65 | . . 65 . Kills 2 | . . 2 . Allies Corrupted . | . . . . Allies Melted . | . . . . Intel | -11 -10 -10 -9 ------- Run | Scr Mat Min Mat Robot Analysis Total . | . . . . Derelict Logs Recovered 1 | . . 1 . Drone Launches . | . . . . Drone Recoveries . | . . . . Exploration | -11 -10 -10 -9 ------------- Run | Scr Mat Min Mat Turns Passed 247 | 3 168 30 46 Spaces Moved 284 | 3 116 80 85 Core 23 | . . . 23 Treads . | . . . . Legs 63 | 3 60 . . Wheels . | . . . . Hover . | . . . . Flight 198 | . 56 80 62 Fastest Speed 34 | 120 37 37 34 Average Speed 60 | 120 86 37 44 Slowest Speed 150 | 120 150 37 150 Overloaded Moves . | . . . . Propulsion Burnouts . | . . . . Robots Hopped . | . . . . Cave-ins Triggered . | . . . . Exploration Rate (%) 21 | 2 28 37 17 Regions Visited 3 Branch Regions 1 Pre-discovered Areas . | . . . . Known Exits Taken . | . . . . Unknown Exits Taken 3 | 1 1 1 . Scrap Searched . | . . . . Spaces Dug . | . . . . Terrain Destroyed . | . . . . Melee . | . . . . Projectile . | . . . . AOE . | . . . . Actions | -11 -10 -10 -9 --------- Run | Scr Mat Min Mat Total 325 | 2 150 79 94 Wait . | . . . . Move 281 | 2 115 79 85 Hop . | . . . . Pick Up 2 | . 2 . . Fast Attach 2 | . 1 . 1 Attach 5 | . 2 . 3 Detach 6 | . 4 . 2 Swap 1 | . 1 . . Drop 6 | . 5 . 1 Fire 20 | . 20 . . Melee . | . . . . Ram 2 | . . . 2 Kick . | . . . . Crush . | . . . . Escape Stasis . | . . . . Rewire . | . . . . Trap . | . . . . Miscellaneous . | . . . . Route ------- -11/Scrapyard -10/Materials (discovered 2 exits: [*Min x2]) -10/Mines -9/Materials History --------- Turn | Location | Event 1 | -11/Scrapyard | Discovered new exit (range 3) 4 | -11/Scrapyard | Entered Materials 71 | -10/Materials | Discovered new exit (range 12) 139 | -10/Materials | Discovered new exit (range 15) 172 | -10/Materials | Entered Mines 189 | -10/Mines | Learned Materials terminal intel 197 | -10/Mines | Discovered new exit (range 13) 202 | -10/Mines | Entered Materials 202 | -9/Materials | Evolved 2 slots: Propulsion x1, Utility x1 203 | -9/Materials | Loaded intel: 12 terminal locations 241 | -9/Materials | Core integrity fell below 50% 246 | -9/Materials | Core integrity fell below 20% 248 | -9/Materials | Destroyed by S-10 Pest with Light Assault Rifle Last Messages --------------- 00206_ Acquired Sensor Array. 00218_ K-01 Serf cleans the Terminal. 00218_ Connecting with Terminal... 00218_ Current location identified: Materials 00218_ ALERT: Suspicious activity at Terminal M002. Dispatching Investigation squad. 00222_ O-16 Technician: "IFF HANDSHAKE FAILED. SECURING TERMINAL." 00222_ O-16 Technician uses terminal to summon reinforcements. 00222_ ALERT: Hostiles spotted, dispatching reinforcements to Terminal M010. 00222_ O-16 Technician locks terminal. 00228_ Flight Unit destroyed. 00231_ Lgt. Ion Engine destroyed. 00237_ Dropped Sml. Storage Unit. 00238_ Slammed into S-10 Pest. 00238_ Destabilizing: Short circuit. 00238_ Broken Sensor Array permanently disabled. 00240_ Slammed into Y-45 Defender. 00244_ Broken Sensor Array destroyed. 00245_ S-10 Pest destroyed. Map ----- +----------------------------------------------------+ | ?????????????????????????????????????????????????? | | ?????????????????????????????????????????????????? | | ?????????????????????????????????????????????????? | | ?????????????????????????????????????????????????? | | ?????????????????????????????????????????????????? | | ?????????????????????????????????????????????????? | | ?????????????????????????????????????????????????? | | ?????????????????????????????????????????????????? | | ?????????????????????????????????????????????????? | | ?????????????????????????????????????????????????? | | ?????????????????????????????????????????????????? | | ?????????????????????????????????????????????????? | | ?????????????????????????????????????????????????? | | ???????????????????????????"T"???#######?????????? | | ???????????????????????????"""???# ##????????? | | ?????????????????????????????????# ?????????? | | ?????????????????????????????????# ?????????? | | ?????????????????????????????????# ??????????? | | ?????????????????????????????????? ??????????? | | ??????????????????????????????????# #??????????? | | ??????????????????????????????????# #??????????? | | ??????????????????????????????????# ###########? | | ??????????????????????????????????# ## #? | | ?????????T??????????# ??????###??## ## #? | | ????????????????????# #####T#### # """ #? | | ????????????????????# @ %s # """ #? | | ????????????????????# s s /Y """ #? | | ????????????????????# s s # [ """ #? | | ????????????????????############## s # !! """ #? | | ?????????????????????????####?##### ## #? | | ?????????????????????????#!! ##"T"# ## #? | | ?????????????????????????#!! ###########? | | ?????????????????????????#!! #??????????? | | ?????????????????????????#!! #??????????? | | ?????????????????????????#]] """ #??????????? | | ?????????????????????????#]] """ #??????????? | | ?????????????????????????##### """ ############ | | ?????????????????????????????# + # | | ?????????????????????????????# ## """"" # | | ?????????????????????????????#######+### """"" # | | ???????????????????????????????????????# """"" # | | ???????????????????????????????????????# # | | ???????????????????????????????????????# ""T"" # | | ???????????????????????????????????????# """"" # | | ???????????????????????????????????????# # | | ????????????????????????????????????#########+#### | | ??????????????????????????????? | | ??????????????????????????????? | | ??????????????????????????????? """ """ """ | | ???????????????????????????????????""" """ """ | +----------------------------------------------------+ Best States ------------- Heat Dissipation 28 Energy Generation 10 Energy Capacity 125 Matter Stores 300 Matter Capacity 300 Sight Range 16 Robot Scan Range 10 Terrain Scan Density 10 Evasion (%) 63 Item Schematics ----------------- None Robot Schematics ------------------ None Fabricated ------------ Nothing Alien Tech Used ----------------- None Achievements -------------- None Challenges ------------ None Game ------ Seed WeightUtilityDriver Manual? 0 Play Time 00:11:27 Cumulative 75.2 hours Start 2020.01.30 @ 23:45:53 End 2020.01.30 @ 23:54:53 Sessions 1 Manual Loads 0 Difficulty Rogue Special Mode None Game No. 56 Rogue 56 Adventurer 0 Explorer 0 Win Type - Total 2 Types 2/0/0/0/0/0/0 Lore% 33 Gallery% 49 Achievement% 6 Wizard Run 0 Options --------- ASCII 0 Keyboard 0 Movement Mouse Keybinds 0 Fullscreen 1 Font 18/SmallcapsGlow Map View 76x50 Tactical HUD 1 Map Filters NONE Filters NONE Steam 1 RUN: 494586e6-92b8-46d0-8869-c76d0d71af0c